Cogmind - Beta 16.1 *** ADVENTURER MODE // 2026.02.23 @ 17:52:20 Player: Ms. V3-11A Result: Destroyed by S-27 Virus with Autogun Performance ------------- Evolutions (5) 2500 Regions Visited (6) 1200 Robots Destroyed (73) 365 Value Destroyed (2759) 2759 Prototype IDs (14) 280 Alien Tech Used (0) 0 Bonus (1532) 1532 TOTAL SCORE: 8636 Bonus ------- High Alert Combat Kills 139 Follower Combat Kills 756 Registered with UFD 300 Met Optimus in HQ 500 Friendly Fire -163 Cogmind --------- Core Integrity 0/1000 Matter 7/300 Energy 70/100 System Corruption 0% Temperature Cool (0) Movement Core (100) Ox1 Location -5/Factory Parts ------- > --- POWER (2) -------- (None) > --- PROPULSION (3) --- (None) > --- UTILITY (9) ------ (None) > --- WEAPON (3) ------- Companion Sword > --- INVENTORY (5) ---- Advanced Shield Generator Improved Recalibrator Variable Charge Gun KE Penetrator Hypervelocity Gauss Cannon Peak State ------------ > --- POWER ------------ Light Fission Core Neutrino Core > --- PROPULSION ------- Carbon-fiber Leg Makeshift Leg Makeshift Leg > --- UTILITY ---------- Scrap Suit Advanced Heat Sink High-capacity Storage Unit 0b10 Decoder Chip [Looter] Advanced Targeting Computer Makeshift Hacking Suite Improved Hacking Suite Makeshift System Shield > --- WEAPON ----------- Overtuned Beamcaster Enhanced Gauss Cannon Companion Sword > --- INVENTORY -------- Coolant Injector High-capacity Storage Unit High-capacity Battery Matter Compressor Riot Gun Phase Cannon Barrage Gun Flak Gun KE Penetrator Enhanced Gauss Cannon Enhanced Gauss Cannon Proton Missile Launcher DRS Beacon [Rating: 80] Favorites ----------- Power Ion Engine Engine Ion Engine Power Core Light Nuclear Core Propulsion Light Treads Treads Light Treads Leg Makeshift Leg Hover Unit Antigrav System Utility High-capacity Storage Unit Device Disposable Heat Sink Storage High-capacity Storage Unit Processor Targeting Computer Hackware Hacking Suite Weapon Improved Assault Rifle Energy Gun Backup Laser III Energy Cannon Subdweller Beam Cannon Ballistic Gun Improved Assault Rifle Ballistic Cannon Enhanced Gauss Cannon Launcher Proton Missile Launcher Slashing Weapon Companion Sword Build | -11 -10 -10 -7 -5 -5 -5 ------- Run | Yrd Mat Sub Scr Fac Was Fac Slots Evolved 10 | . . . . 10 . . Power 1 | . . . . 1 . . Propulsion 1 | . . . . 1 . . Utility 7 | . . . . 7 . . Weapon 1 | . . . . 1 . . Parts Attached 75 | 1 6 10 6 24 1 27 Power 10 | . . 1 1 5 . 3 Engine 5 | . . . 1 3 . 1 Core 5 | . . 1 . 2 . 2 Reactor . | . . . . . . . Propulsion 15 | . 2 3 2 3 1 4 Treads 5 | . 2 3 . . . . Leg 6 | . . . 2 3 1 . Wheel . | . . . . . . . Hover 4 | . . . . . . 4 Flight . | . . . . . . . Utility 27 | . 2 1 1 10 . 13 Device 12 | . 1 . . 4 . 7 Storage 4 | . 1 . . 2 . 1 Processor 6 | . . 1 1 1 . 3 Hackware 5 | . . . . 3 . 2 Protection . | . . . . . . . Artifact . | . . . . . . . Weapon 23 | 1 2 5 2 6 . 7 Energy Gun 4 | . . . . 2 . 2 Energy Cannon 3 | . . 2 . . . 1 Ballistic Gun 9 | 1 2 3 1 1 . 1 Ballistic Cannon 4 | . . . . 2 . 2 Launcher 2 | . . . . 1 . 1 Special Weapon . | . . . . . . . Impact Weapon . | . . . . . . . Slashing Weapon 1 | . . . 1 . . . Piercing Weapon . | . . . . . . . Special Melee Weapon . | . . . . . . . Unidentified Prototypes 3 | . 1 . 1 . . 1 Corrupted Parts 1 | . . . . . 1 . System Corruption 4 | . . . . . 4 . Parts Lost 37 | . . 5 . 23 . 9 Power 6 | . . . . 4 . 2 Propulsion 9 | . . 1 . 5 . 3 Utility 12 | . . 1 . 8 . 3 Weapon 10 | . . 3 . 6 . 1 Highest Loss Streak 11 | . . 3 . 11 . 9 To Critical Strikes . | . . . . . . . Average Backups 15 | 5 13 19 17 13 5 7 Power 1 | 1 1 1 . 1 . . Propulsion 1 | 3 2 2 . . 1 . Utility 7 | . 4 8 11 4 1 1 Weapon 5 | 1 3 6 5 6 3 4 Tool/Special . | . . . . . . . Unused Backups 32 | . 8 2 9 8 1 4 Power 3 | . 1 1 1 . . . Propulsion 5 | . 2 . . 2 . 1 Utility 12 | . 2 . 6 3 . 1 Weapon 12 | . 3 1 2 3 1 2 Tool/Special . | . . . . . . . Average Slot Usage (%) 91 | . 99 99 100 81 1 61 Engine 10 | . 14 12 10 6 . 2 Core 2 | . . 1 3 1 . 4 Treads 14 | . 26 28 5 . . . Leg 8 | . . . 22 14 . 1 Hover 1 | . . . . . . 11 Device 7 | . 13 11 . 8 . 9 Storage 11 | . 14 14 14 4 . 3 Processor 6 | . . 2 14 10 . 7 Hackware 2 | . . . . 14 . 7 Energy Gun 1 | . 5 . . 1 . 4 Ballistic Gun 20 | . 22 25 28 4 . . Peak Build Rating 80 | 6 14 18 32 80 7 72 Average Rating 26 | 6 11 15 24 64 2 49 On Entrance 12 | 6 6 14 18 30 7 4 Avg Prop Armor Cover (%) 12 | . . . . . . 12 Naked Turns 160 | . . . . . 52 108 Heaviest Build 86 | 14 52 57 55 86 4 37 Greatest Support 60 | 20 40 40 40 60 15 33 Greatest Overweight (x) 22 | . 2 1 1 22 1 2 Average Overweight (x) . | . . 1 1 . . . Largest Inventory Capacity 20 | 8 20 20 20 20 5 10 Average Capacity 17 | 8 19 20 20 18 5 8 Most Carried 20 | 5 16 20 20 20 5 10 Average Carried 15 | 4 13 19 18 13 4 7 Final Capacity 20 | 8 20 20 20 5 5 5 Final Carried 20 | 4 16 20 20 5 4 5 Scrap Suit Usage (%) 3 | . . . . 38 . . Parts Cannibalized 12 | . . . . 12 . . Class Distribution -------------------- 57% | Mutant 24% | Derelict-Mutant 10% | Hacker-Mutant 3% | Hacker-Scout Dominant Class ---------------- Mutant | -10/Materials Mutant | -10/Subcaves Derelict-Mutant | -7/Scraptown Derelict-Mutant | -5/Factory Mutant | -5/Waste Hacker-Mutant | -5/Factory Resources | -11 -10 -10 -7 -5 -5 -5 ----------- Run | Yrd Mat Sub Scr Fac Was Fac Matter Collected 2668 | 200 108 615 247 843 . 655 Remotely . | . . . . . . . Salvage Created 3290 | . 442 632 31 1125 . 1060 Parts 157 | . 22 43 1 39 . 52 Haulers Intercepted 2 | . 1 . . . . 1 Recyclers Shooed 7 | . . . . 3 . 4 Parts Field Recycled . | . . . . . . . Retrieved Matter . | . . . . . . . Parts Self-Destructed 26 | . . 25 1 . . . Prevented . | . . . . . . . Parts Restored . | . . . . . . . Kills | -11 -10 -10 -7 -5 -5 -5 ------- Run | Yrd Mat Sub Scr Fac Was Fac Combat Hostiles Destroyed 56 | . 10 17 . 17 . 12 Melee 1 | . . . . 1 . . Guns 33 | . 10 16 . 6 . 1 Cannons 17 | . . . . 8 . 9 AOE 1 | . . . . . . 1 Classes Destroyed 17 | . 5 3 . 5 . 4 Worker 3 | . 1 . . 1 . 1 Builder 3 | . . . . 1 . 2 Hauler 2 | . 1 . . . . 1 Recycler 4 | . 1 . . 1 . 2 Mechanic 1 | . . . . . . 1 Turret 2 | . . 2 . . . . Watcher 1 | . . . . . . 1 Swarmer 10 | . 3 6 . . . 1 Grunt 24 | . 7 2 . 11 . 4 Duelist 1 | . . . . 1 . . Protector 1 | . . . . 1 . . Sentry 4 | . . 1 . 1 . 2 Hunter 3 | . . . . 3 . . Programmer 4 | . . . . . . 4 Heavy 1 | . . . . . . 1 Subdweller 8 | . . 8 . . . . Scrapoid 1 | . . . . 1 . . Best Kill Streak 8 | . 3 6 . 7 . 8 Combat Bots Only 7 | . 3 4 . 6 . 7 Max Kills in Single Turn 2 | . 1 1 . 2 . 2 Gunslinging . | . . . . . . . Exploded 1 | . . . . . . 1 Melee 1 | . . . . 1 . . Uniques/NPCs Destroyed . | . . . . . . . Combat | -11 -10 -10 -7 -5 -5 -5 -------- Run | Yrd Mat Sub Scr Fac Was Fac Hostile Shots Fired 546 | . 51 120 . 273 1 101 Missed 172 | . 12 38 . 81 1 40 Hits 374 | . 39 82 . 192 . 61 Melee 6 | . . . . 6 . . Projectile 368 | . 39 82 . 186 . 61 Critical Strikes 13 | . 1 1 . 7 . 4 Damage Taken 5269 | . 339 878 . 2922 . 1130 Core 1161 | . 41 118 . 687 . 315 Absorbed by Shields 50 | . . . . 50 . . Ignored by Resistances 1468 | . 104 230 . 828 . 306 Regen/Repaired (Parts) 302 | . . . . 114 . 188 Core Remaining (%) 68 | 100 . . 36 . . . Volleys Fired 276 | . 29 102 3 52 . 90 Largest 3 | . 2 2 2 2 . 3 Hottest 147 | . 70 103 47 147 . 145 Shots Fired 436 | . 58 165 6 89 . 118 Gun 280 | . 58 120 6 43 . 53 Cannon 146 | . . 45 . 37 . 64 Launcher 10 | . . . . 9 . 1 Special . | . . . . . . . Kinetic 305 | . 35 120 6 63 . 81 Thermal 111 | . 23 45 . 17 . 26 Explosive . | . . . . . . . Electromagnetic 20 | . . . . 9 . 11 Robot Hit Streak 27 | . 17 18 16 27 . 20 Robot Miss Streak 3 | . 3 2 2 2 . 2 Penetration Max 1 | . . . . 1 . 1 Secondary Targets 4 | . 3 1 . . . . Max Gunslinging Chain 1 | . 1 1 . . . . Shots Hit Robots 299 | . 43 84 5 76 . 91 Core Hits 148 | . 20 29 2 60 . 37 Critical Kills 6 | . 1 1 . . . 4 Critical Parts Destroyed 2 | . . . . . . 2 Critical Strikes 19 | . 3 1 . 6 . 9 Burn 3 | . 2 . . 1 . . Meltdown 2 | . . 1 . . . 1 Destroy 6 | . 1 . . . . 5 Blast 8 | . . . . 5 . 3 Melee Attacks 23 | . . . . 4 . 19 Impact . | . . . . . . . Slashing 23 | . . . . 4 . 19 Piercing . | . . . . . . . Sneak Attacks . | . . . . . . . Combat Hostiles . | . . . . . . . Follow-up Attacks . | . . . . . . . Damage Inflicted 7599 | . 563 1287 64 2902 . 2783 Guns 3718 | . 556 1229 64 974 . 895 Cannons 2835 | . . 58 . 1012 . 1765 Explosions 910 | . . . . 787 . 123 Melee 129 | . . . . 129 . . Ramming 7 | . 7 . . . . . Kinetic 5354 | . 366 1229 64 1625 . 2070 Thermal 1041 | . 190 58 . 361 . 432 Explosive . | . . . . . . . Electromagnetic 1068 | . . . . 787 . 281 Impact . | . . . . . . . Slashing 129 | . . . . 129 . . Piercing . | . . . . . . . Highest Corruption 10 | . . . . 1 9 10 Average Corruption 7 | . . . . 1 4 8 Corruption Purged 10 | . . . . . . 10 Corruption Blocked . | . . . . . . . Effects 32 | . . . . . 1 31 Message Errors 5 | . . . . . 1 4 Matter Fused 7 | . . . . . . 7 Heat Flow Errors 7 | . . . . . . 7 Energy Discharges 4 | . . . . . . 4 Parts Fused 1 | . . . . . . 1 Data Loss (minor) 3 | . . . . . . 3 Data Loss (major) 2 | . . . . . . 2 Misfires 1 | . . . . . . 1 Alerts 1 | . . . . . . 1 Weapon Failures 1 | . . . . . . 1 Overload Shots . | . . . . . . . Overflow Damage 99 | . . . . 33 . 66 Projectiles 99 | . . . . 33 . 66 Explosions . | . . . . . . . Melee . | . . . . . . . Knockbacks 14 | . . . . 8 . 6 Impact . | . . . . . . . Kinetic 10 | . . . . 4 . 6 Secondary 4 | . . . . 4 . . Self-Inflicted Damage 53 | . . . . 53 . . Shots 2 | . . . . 2 . . Rammed 4 | . 4 . . . . . Targets Rammed 5 | . 5 . . . . . Kicked . | . . . . . . . Crushed 1 | . 1 . . . . . Highest Temperature 279 | . 150 . . 263 . 279 Average Temperature 71 | . 55 . . 82 . 77 Received Heat Transfer 1782 | . 243 225 . 1013 . 301 Effects 1 | . . . . . . 1 Energy Bleed 1 | . . . . . . 1 Siege Activations . | . . . . . . . Martial Activations . | . . . . . . . Shielding Activations . | . . . . . . . Robots Disrupted 1 | . . . . 1 . . Combat Hostiles 1 | . . . . 1 . . Robots Corrupted 1 | . . . . 1 . . Combat Hostiles 1 | . . . . 1 . . Parts Fried 1 | . . . . 1 . . Impact Corruptions . | . . . . . . . Robots Melted 3 | . . 1 . 1 . 1 Combat Hostiles 3 | . . 1 . 1 . 1 Parts Melted 6 | . 1 2 . 1 . 2 Heat Transferred 2193 | . 703 74 . 750 . 666 Parts Sabotaged . | . . . . . . . Parts Stolen . | . . . . . . . Parts Stripped . | . . . . . . . Power Chain Reactions 1 | . . . . 1 . . Alert | -11 -10 -10 -7 -5 -5 -5 ------- Run | Yrd Mat Sub Scr Fac Was Fac Maximum Alert Level 2 | . . . . 2 . . Low Security (%) 88 | 100 100 . . 45 100 100 Level 1 4 | . . . . 23 . . Level 2 6 | . . . . 31 . . Level 3 . | . . . . . . . Level 4 . | . . . . . . . Level 5 . | . . . . . . . High Security . | . . . . . . . Max Security . | . . . . . . . Peak Influence 529 | . 90 . . 529 110 151 Initial 110 | . . . . . 110 49 Average 66 | . 11 . . 240 98 29 Influence Increases 2254 | . 282 285 5 1000 . 682 Destroy 0b10 Robot/C 1340 | . 200 220 . 560 . 360 Destroy 0b10 Robot/NC 95 | . 15 . 5 35 . 40 Destroy Leader 276 | . 42 20 . 100 . 114 Allied During Kill 121 | . . . . 65 . 56 Successful Hack 47 | . 25 . . . . 22 Disable Machine 117 | . . . . 99 . 18 Destroy Structure 198 | . . . . 126 . 72 Lose Combat Pursuer 60 | . . 45 . 15 . . Influence Decreases 2154 | . 282 285 5 621 299 662 Entered New Map 300 | . . . . . 269 31 Time Decay 1313 | . 282 255 5 300 30 441 Lost Part 341 | . . 30 . 221 . 90 Lost Ally 200 | . . . . 100 . 100 Squads Dispatched 21 | . . . . 10 . 11 Investigation 9 | . . . . 3 . 6 Extermination 4 | . . . . 1 . 3 Reinforcement 5 | . . . . 3 . 2 Assault 2 | . . . . 2 . . Garrison 1 | . . . . 1 . . Intercept . | . . . . . . . Searches Triggered . | . . . . . . . Construction Impeded 2 | . . . . 2 . . Haulers Reinforced 2 | . . . . 1 . 1 Active Scanning Responses . | . . . . . . . Cargo Convoy Interrupts . | . . . . . . . Stealth | -11 -10 -10 -7 -5 -5 -5 --------- Run | Yrd Mat Sub Scr Fac Was Fac Distress Signals 1 | . . . . 1 . . Communications Jammed . | . . . . . . . Distress Signals . | . . . . . . . Times Spotted 114 | . 17 20 . 40 6 31 Peak Tracking Total 8 | . 5 6 . 8 6 5 Tactical Retreats 3 | . . 2 . 1 . . Traps | -11 -10 -10 -7 -5 -5 -5 ------- Run | Yrd Mat Sub Scr Fac Was Fac Traps Triggered 9 | . 1 3 . 4 . 1 Indirectly 3 | . . . . 3 . . Trap Hack Attempts . | . . . . . . . Triggered . | . . . . . . . Disarmed . | . . . . . . . Reprogrammed . | . . . . . . . Reused . | . . . . . . . Traps Extracted . | . . . . . . . Installed . | . . . . . . . Triggered . | . . . . . . . Machines | -11 -10 -10 -7 -5 -5 -5 ---------- Run | Yrd Mat Sub Scr Fac Was Fac Machines Disabled 14 | . . 1 . 11 . 2 Max in Single Turn 1 | . . 1 . 1 . 1 Garrison Access 3 | . . . . 1 . 2 Machines Repaired . | . . . . . . . Machines Dismantled . | . . . . . . . Machines Sabotaged . | . . . . . . . Overloaded Fab Kills . | . . . . . . . Hacking | -11 -10 -10 -7 -5 -5 -5 --------- Run | Yrd Mat Sub Scr Fac Was Fac Machines Accessed 26 | . 6 . 4 3 . 13 Terminals 7 | . 6 . . . . 1 Fabricators 2 | . . . . . . 2 Repair Stations 3 | . . . . . . 3 Recycling Units 6 | . . . . 3 . 3 Scanalyzers 2 | . . . . . . 2 Garrison Access 2 | . . . . . . 2 Total Hacks 66 | . 15 . 10 3 . 38 Successful 51 | . 10 . 10 3 . 28 Failed 15 | . 5 . . . . 10 Catastrophic . | . . . . . . . Database Lockouts . | . . . . . . . Manual 16 | . 7 . . 3 . 6 Terminals 19 | . 15 . . . . 4 Fabricators 4 | . . . . . . 4 Repair Stations 14 | . . . . . . 14 Recycling Units 9 | . . . . 3 . 6 Scanalyzers 7 | . . . . . . 7 Garrison Access 3 | . . . . . . 3 Terminal Hacks 20 | . 7 . 10 . . 3 Record 10 | . . . 9 . . 1 Part Schematic 1 | . . . . . . 1 Prototype ID Bank 2 | . 2 . . . . . Open Door 1 | . . . 1 . . . Branch Access Points 1 | . 1 . . . . . Terminal Index 1 | . . . . . . 1 Alert Level 1 | . 1 . . . . . Locate Traps 1 | . 1 . . . . . Dispatch Records 1 | . 1 . . . . . Hauler Manifests 1 | . 1 . . . . . Fabricator Hacks 4 | . . . . . . 4 Network Status 1 | . . . . . . 1 Load Schematic 1 | . . . . . . 1 Build 2 | . . . . . . 2 Repair Station Hacks 11 | . . . . . . 11 Scan Component 5 | . . . . . . 5 Repair 5 | . . . . . . 5 Refit 1 | . . . . . . 1 Recycling Unit Hacks . | . . . . . . . Scanalyzer 5 | . . . . . . 5 Insert Component 1 | . . . . . . 1 Analyze 1 | . . . . . . 1 Retrieve Study 3 | . . . . . . 3 Garrison Access Hacks 2 | . . . . . . 2 Seal Access 2 | . . . . . . 2 Unauthorized Hacks 9 | . 3 . . 3 . 3 Terminals 3 | . 3 . . . . . Botnet 3 | . 3 . . . . . Fabricators . | . . . . . . . Repair Stations . | . . . . . . . Recycling Units 6 | . . . . 3 . 3 Fedlink 4 | . . . . 2 . 2 Scrapoids 2 | . . . . 1 . 1 Scanalyzers . | . . . . . . . Garrison Access . | . . . . . . . Data Cores Recovered . | . . . . . . . Used . | . . . . . . . Hacking Detections 14 | . 6 . . . . 8 Full Trace Events 2 | . . . . . . 2 Feedback Events . | . . . . . . . Feedback Blocked . | . . . . . . . Robot Schematics Acquired . | . . . . . . . Robots Built . | . . . . . . . Authchips . | . . . . . . . Time . | . . . . . . . Total Robot Build Rating . | . . . . . . . Part Schematics Acquired 2 | . . . . . . 2 Parts Built 1 | . . . . . . 1 Authchips . | . . . . . . . Time 212 | . . . . . . 212 Total Part Build Rating 6 | . . . . . . 6 Part Studies Acquired 3 | . . . . . . 3 Parts Repaired 5 | . . . . . . 5 Time 280 | . . . . . . 280 Parts Recycled . | . . . . . . . Recycled Matter . | . . . . . . . Retrieved Matter . | . . . . . . . Retrieved Components . | . . . . . . . Parts Scanalyzed 1 | . . . . . . 1 Part Schematics Acquired 1 | . . . . . . 1 Parts Damaged 1 | . . . . . . 1 Bothacking | -11 -10 -10 -7 -5 -5 -5 ------------ Run | Yrd Mat Sub Scr Fac Was Fac Used RIF Installer . | . . . . . . . Robots Hacked . | . . . . . . . Non-combat . | . . . . . . . Combat . | . . . . . . . Robot Hacks Applied . | . . . . . . . Relay Couplers Released 2 | . . . . 2 . . Machine Destruction 2 | . . . . 2 . . Fabnet Peak Effective % . | . . . . . . . Robots Rewired 1 | . . . . 1 . . Allies Hacked . | . . . . . . . Hacks Repelled . | . . . . . . . Allies | -11 -10 -10 -7 -5 -5 -5 -------- Run | Yrd Mat Sub Scr Fac Was Fac Total Allies 11 | . . . . 6 . 5 Largest Group 5 | . . . . 5 . 5 Highest-Rated Group 235 | . . . . 235 . 235 Highest-Rated Ally 47 | . . . . 47 . 47 Initial UFD Resources 50 | . . . . 39 50 50 Total Orders . | . . . . . . . Ally Attacks 146 | . . . . 87 . 59 Total Damage 3211 | . . . . 2073 . 1138 Kills 21 | . . . . 15 . 6 Allies Corrupted . | . . . . . . . Allies Melted . | . . . . . . . Intel | -11 -10 -10 -7 -5 -5 -5 ------- Run | Yrd Mat Sub Scr Fac Was Fac Active Infowar (turns) 1864 | . . . . 750 . 1114 Sensors 565 | . . . . . . 565 Decoding 750 | . . . . 750 . . Machine Analysis 1114 | . . . . . . 1114 Robot Analysis Total . | . . . . . . . Derelict Logs Recovered 6 | . . 2 4 . . . Drone Launches . | . . . . . . . Drone Recoveries . | . . . . . . . Decoded 0b10 Intel 30 | . . . . 30 . . Items 30 | . . . . 30 . . Exploration | -11 -10 -10 -7 -5 -5 -5 ------------- Run | Yrd Mat Sub Scr Fac Was Fac Turns Passed 9923 | 3 1560 3055 2896 815 64 1530 Spaces Moved 4656 | 1 612 1142 1323 319 115 1144 Core 184 | . . . . 57 114 13 Treads 1950 | . 582 1142 226 . . . Legs 1408 | 1 30 . 1097 262 1 17 Wheels . | . . . . . . . Hover 1114 | . . . . . . 1114 Flight . | . . . . . . . Fastest Speed 45 | 120 120 240 210 100 50 45 Average Speed 177 | 120 231 240 215 179 54 54 Slowest Speed 1150 | 120 320 240 240 1150 120 150 Overloaded Moves . | . . . . . . . Propulsion Burnouts . | . . . . . . . Robots Hopped . | . . . . . . . Potential Cave-ins 10 | . . . . . . 10 Cave-ins Triggered . | . . . . . . . Exploration Rate (%) 46 | 2 73 39 80 11 97 25 Regions Visited 6 Branch Regions 2 Pre-discovered Areas 2 | . . . 1 1 . . Known Exits Taken . | . . . . . . . Unknown Exits Taken 4 | 1 1 1 1 . . . Scrap Searched 19 | . . 16 3 . . . Spaces Dug 21 | . . 2 . . . 19 Terrain Destroyed 53 | . . 16 . 12 . 25 Melee 19 | . . . . . . 19 Projectile 29 | . . 16 . 7 . 6 AOE 5 | . . . . 5 . . Terrain Rammed . | . . . . . . . Walls Destroyed . | . . . . . . . Machines Disabled . | . . . . . . . Actions | -11 -10 -10 -7 -5 -5 -5 --------- Run | Yrd Mat Sub Scr Fac Was Fac Total 5849 | 3 693 1282 1372 473 117 1909 Wait 640 | . 15 . 11 37 . 577 Move 4651 | . 611 1141 1322 319 114 1144 Hop . | . . . . . . . Pick Up 68 | . 17 13 15 15 . 8 Fast Attach 37 | . 5 . . 5 . 27 Attach 37 | . 2 6 2 19 1 7 Detach 12 | . . . . 1 1 10 Swap 35 | 1 1 14 5 5 . 9 Drop 57 | 2 8 6 14 8 1 18 Fire 276 | . 29 102 3 52 . 90 Melee 23 | . . . . 4 . 19 Ram . | . . . . . . . Kick . | . . . . . . . Crush 5 | . 5 . . . . . Escape Stasis . | . . . . . . . Rewire 8 | . . . . 8 . . Trap . | . . . . . . . Miscellaneous . | . . . . . . . Route ------- -11/Scrapyard -10/Materials (discovered 6 exits: [*Mat x3] / *Min x2 / [*Sub]) -10/Subcaves (discovered 4 exits: [*Mat x2] / [*Rec] / *Scr) -7/Scraptown -5/Factory -5/Waste -5/Factory History --------- Turn | Location | Event 4 | -11/Scrapyard | Discovered new exit (range 0) 4 | -11/Scrapyard | Entered Materials 87 | -10/Materials | Discovered new exit (range 14) 198 | -10/Materials | Discovered new exit (range 7) 301 | -10/Materials | Build established: Mutant 306 | -10/Materials | Discovered new exit (range 15) 422 | -10/Materials | Identified exit to Mines 469 | -10/Materials | Discovered new exit (range 16) 809 | -10/Materials | Discovered new exit (range 5) 1564 | -10/Materials | Entered Subcaves 1565 | -10/Subcaves | Approached by a straggling Scientist 1638 | -10/Subcaves | Disturbed a concealed Subdweller 1653 | -10/Subcaves | Discovered new exit (range 7) 1954 | -10/Subcaves | Shifting Twisted Machinery released Riot Gun 1959 | -10/Subcaves | Shifting Twisted Machinery released Sub. Laser 2224 | -10/Subcaves | Ambushed by Subdweller buried in earth 2507 | -10/Subcaves | A swath of the cavern ceiling suddenly collapsed 2614 | -10/Subcaves | Shifting Twisted Machinery released Battle Cannon 2617 | -10/Subcaves | Discovered new exit (range 12) 2623 | -10/Subcaves | Shifting Twisted Machinery released Battle Cannon 3052 | -10/Subcaves | Learned Materials terminal intel 3248 | -10/Subcaves | Learned 2 Materials zone layouts 3326 | -10/Subcaves | Scientist uncovered a shortcut to Scraptown 4032 | -10/Subcaves | Core integrity fell below 50% 4137 | -10/Subcaves | Discovered new exit (range 13) 4170 | -10/Subcaves | Lost 3 parts (1u2w) 4619 | -10/Subcaves | Entered Scraptown 4887 | -7/Scraptown | Heard Great Nut preacher, LISTEN AND RECITE! 5017 | -7/Scraptown | Scanned Subdweller tech in exchange for log data 5022 | -7/Scraptown | Learned Research stockpile data 5026 | -7/Scraptown | Learned Research emergency access door positions 5029 | -7/Scraptown | Learned location of Warlord (-5) 5674 | -7/Scraptown | Visited Comm Corps 5710 | -7/Scraptown | Build established: Derelict-Mutant 5781 | -7/Scraptown | Visited UFD Registry 5781 | -7/Scraptown | Registered with UFD as "Alphaslicer" 5839 | -7/Scraptown | Visited Spacefarers 5938 | -7/Scraptown | Visited Fellowship of the Rings 5999 | -7/Scraptown | Visited TADAMA 6041 | -7/Scraptown | Visited The Evicted 6251 | -7/Scraptown | Delivered Scrap Shield to a Scientist 6539 | -7/Scraptown | Visited Scrapoid Pod Storage 6568 | -7/Scraptown | Visited Observation Area 6608 | -7/Scraptown | Visited Infowarlord's Domain 6710 | -7/Scraptown | Visited Sword Containment 6731 | -7/Scraptown | Found Prototype Slashing Weapon 6776 | -7/Scraptown | Visited Research Penetration Think Tank 6824 | -7/Scraptown | Visited Derelict Rescue Squad 6837 | -7/Scraptown | Found DRS Beacon 6865 | -7/Scraptown | Visited DA-N13 Charitable Foundation 6884 | -7/Scraptown | Found DCF Scrap (30 items) 6970 | -7/Scraptown | Identified Companion Sword 7008 | -7/Scraptown | Visited Science Testing Area 7097 | -7/Scraptown | Visited Curators Association 7173 | -7/Scraptown | Visited Abandonware Association 7196 | -7/Scraptown | Learned abandonware demo "SHUTEYE.EXE" 7383 | -7/Scraptown | Met Optimus 7383 | -7/Scraptown | Accepted into 0bPrime 7509 | -7/Scraptown | Discovered new exit (range 3) 7515 | -7/Scraptown | Entered Factory 7515 | -5/Factory | Evolved 10 slots: Power x1, Propulsion x1, Utility x7, Weapon x1 7707 | -5/Factory | Loaded intel: 8 recycling unit locations 7807 | -5/Factory | Lost 4 parts (1p1n2u) 7846 | -5/Factory | Scrapoid reinforcements arrived 7868 | -5/Factory | Learned location of Protoforge (-2) 7905 | -5/Factory | Discovered new exit (range 16) 7911 | -5/Factory | Found Scrap Suit 8074 | -5/Factory | Lost 3 allies 8115 | -5/Factory | First assault squad dispatched 8220 | -5/Factory | Build established: Hacker-Mutant 8222 | -5/Factory | Lost 4 parts (1p1n1u1w) 8267 | -5/Factory | Core integrity fell below 50% 8274 | -5/Factory | Released all parts (3) 8305 | -5/Factory | Lost 11 parts (1p2n5u3w) 8330 | -5/Factory | Sucked down chute 8330 | -5/Factory | Entered Waste 8343 | -5/Waste | Spotted C-40 Crusher 8345 | -5/Waste | EMP discharged 8370 | -5/Waste | Spotted C-40 Crusher 8370 | -5/Waste | Spotted C-40 Crusher 8377 | -5/Waste | Spotted C-40 Crusher 8384 | -5/Waste | Spotted C-40 Crusher 8385 | -5/Waste | Discovered new exit (range 16) 8387 | -5/Waste | Spotted C-40 Crusher 8394 | -5/Waste | Entered Factory 8513 | -5/Factory | Fabricated Hvy. Shock Bomb Launcher (x1) 8878 | -5/Factory | System corruption reached 10% 9030 | -5/Factory | Repaired Antigrav System 9067 | -5/Factory | Loaded intel: 8 recycling unit locations 9264 | -5/Factory | Noticed a derelict Sapper rigging charges 9340 | -5/Factory | Scrapoids reinforcements arrived? 9570 | -5/Factory | Repaired Antigrav System 9628 | -5/Factory | Repaired Hyp. Gauss Cannon 9685 | -5/Factory | Repaired Antigrav System 9743 | -5/Factory | Repaired Antigrav System 9874 | -5/Factory | Lost 5 allies 9878 | -5/Factory | Core integrity fell below 20% 9923 | -5/Factory | Released all parts (7) 9924 | -5/Factory | Destroyed by S-27 Virus with Autogun Last Messages --------------- 09920_ U-05 Engineer lays Concrete. 09921_ Acquired Unknown Storage. 09922_ U-05 Engineer lays Concrete. 09922_ K-01 Serf collects debris. 09922_ U-05 Engineer lays Concrete. 09922_ K-01 Serf destroyed. 09922_ U-05 Engineer lays Concrete. 09922_ Dropped Companion Sword. Companion Sword: "I can't do anything from down here." 09923_ Dropped Unknown Storage. 09923_ Released Hvy. Shock Bomb Launcher. 09923_ Released Adv. System Shield. 09923_ Released Med. Storage Unit. 09923_ Released Hacking Suite. 09923_ Released Machine Analyzer. 09923_ Released Adv. Targeting Computer. 09923_ Released Imp. Coolant Injector. 09923_ Acquired Companion Sword. Companion Sword: "I knew you needed me!" 09923_ U-05 Engineer lays Concrete. Map ----- +----------------------------------------------------+ | ???????????????""???"""??????????????????????????? | | ???????????????Y"???"""??????????????????????????? | | ???????????????""???"""??????????????????????????? | | ?????????????????????????????????????????????????? | | ???????????????????###+??????????????????????????? | | ??????????????????? ??????????????????????????? | | ???????????????????? ????????????????"""???????? | | ???????????????????? ???????????????"T"???????? | | ????????????????????# ?????????????????????????? | | ????????????????????# ???"""""?"""""???????????? | | ????????????????????# ???"""""?"""""???????????? | | ????????????????????# ???""" """?????????????? | | ????????????????????# ???? ???????????? | | ????????????????????# ?? = ??????????? | | ??????????????????? # %#############"###????????? | | ????????????????"""?+^ #????????? | | ????????????????"""?# #????????? | | ????????????????"""?# k #????????? | | ????????????????????## #????????? | | ?????????????????????# * u #????????? | | ?????????????????????#*%!= #????????? | | ?????????????????????#|%! #????????? | | ????????????????????##*%% #######+## | | ?????????? s = ## ##!! = [ *! | | ??????????% s *% * =%%!=]% u u [== | | ?????????? %= s % %!!%*%@! % = * | | ??????????%%!%% % % k%!!! = | | ?????????? g%* ### ! % | | ??????????? ?????###+##;;###t########### | | ?????????????+???????? ?# ! ???????# | | ????????????????????"""""?# ?????## | | ????????????????????""R""?# """"""""" !?????# [* | | ???????????????????? " "??# #????# = ! | | ?????????????????????? ???# """"""""" #???#"## ## | | ??????????????????????????# #???##?# ## | | ??????????????????????"""?# """"""""" #??????# #? | | ??????????????????????"""?# #?????? ? | | ??????????????????????"""?# """""""""????????? ? | | ??????????????????????????# ???????????????? | | ??????????????????????????? """""""""???????? | | ??????????????????????????? ????????????????? | | ???????????????????????????#????????????????###+## | | ?????????????????????????????????????????????????? | | ??????????????????????????????????????????"""?"""? | | ??????????????????????????????????????????"""?"""? | | ??????????????????????????????????????????"""?"""? | | ?????????????????????????????????????????????????? | | ?????????????????????????????????????????????"?""? | | ?????????????????????????????????????????????"R""? | | ?????????????????????????????????????????????"""?? | +----------------------------------------------------+ Best States ------------- Heat Dissipation 59 Coolant Potential 80 Energy Generation 32 Energy Capacity 375 Matter Stores 493 Matter Capacity 550 Sight Range 16 Robot Scan Range 15 Terrain Scan Density 10 Resistance: KI 20 Resistance: TH 20 Resistance: EX 20 Resistance: EM 20 Resistance: I 20 Resistance: S 20 Resistance: P 20 Evasion (%) 56 Targeting Accuracy 8 Recoil Reduction 2 Offensive Hacking 33 Defensive Hacking 14 Item Schematics ----------------- Antigrav System | -5/Factory | Scanalyzed Mic. Fission Core | -5/Factory | Hacked Robot Schematics ------------------ None Fabricated ------------ Hvy. Shock Bomb Launcher | x1 | -5/Factory | Preloaded Repaired ---------- Antigrav System | 32% | -5/Factory Antigrav System | 21% | -5/Factory Hyp. Gauss Cannon | 63% | -5/Factory Antigrav System | 74% | -5/Factory Antigrav System | 45% | -5/Factory Studied --------- Variable Charge Gun | -5/Factory | Hacked KE Penetrator | -5/Factory | Hacked Enh. Gauss Cannon | -5/Factory | Hacked Alien Tech Used ----------------- None Achievements -------------- Nice Directions, Buddy Challenges ------------ None Game ------ Seed FlakBurstStabilizer Manual? 0 Play Time 01:13:20 Cumulative 461.9 hours Start 2026.02.23 @ 16:19:52 End 2026.02.23 @ 17:52:20 Sessions 1 Manual Loads 0 Difficulty Adventurer Special Mode None Game No. 337 Rogue 63 Adventurer 248 Explorer 26 Win Type - Total 2 Types 2/0/0/0/0/0/0/0/0/0 Lore% 83 Gallery% 70 Achievement% 48 Wizard Run 0 Options --------- Layout 2 ASCII 0 Keyboard 0 Movement Mouse Keybinds 0 Fullscreen 0 Font 16/Cog Map View 64x51 Zoom Use 0% Tactical HUD 1 Map Filters NONE Filters BRIGHTNESS(115)|SATURATION(100)|LOW_CONTRAST(0,16,30) Steam 1 RUN: 9f99bd43-6251-4fb6-837d-9964146189f0